[Event "Early-Titled-Tuesday-Blitz-February-27-2024"]
[Site "Chess.com"]
[Date "2024.02.27"]
[Round "8"]
[White "LiamPutnam2008"]
[Black "WilsonPalencia21"]
[Result "1-0"]
[WhiteElo "2787"]
[BlackElo "2560"]
[TimeControl "180+1"]
[EndTime "9:28:39 PST"]
[Termination "LiamPutnam2008 won by resignation"]

1. a4 {[%clk 0:03:00.9]} 1... d6 {[%clk 0:02:56.1]} 2. h4 {[%clk 0:03:01]} 2...
e5 {[%clk 0:02:55]} 3. e4 {[%clk 0:03:00.9]} 3... Nc6 {[%clk 0:02:54.9]} 4. Ne2
{[%clk 0:02:58.3]} 4... h6 {[%clk 0:02:53.6]} 5. d4 {[%clk 0:02:56.6]} 5... exd4
{[%clk 0:02:53.6]} 6. Nxd4 {[%clk 0:02:57.5]} 6... Nf6 {[%clk 0:02:53.6]} 7. Nc3
{[%clk 0:02:57.4]} 7... Be7 {[%clk 0:02:48.2]} 8. a5 {[%clk 0:02:53.9]} 8... a6
{[%clk 0:02:47.1]} 9. Nxc6 {[%clk 0:02:46.9]} 9... bxc6 {[%clk 0:02:48]} 10. Be2
{[%clk 0:02:46.2]} 10... Bd7 {[%clk 0:02:46.6]} 11. Bf4 {[%clk 0:02:41.4]} 11...
h5 {[%clk 0:02:44.5]} 12. e5 {[%clk 0:02:38.3]} 12... dxe5 {[%clk 0:02:36.6]}
13. Bxe5 {[%clk 0:02:39.2]} 13... Be6 {[%clk 0:02:36.5]} 14. Qxd8+ {[%clk
0:02:35.7]} 14... Bxd8 {[%clk 0:02:36.6]} 15. Bf3 {[%clk 0:02:30.2]} 15... Bd7
{[%clk 0:02:19]} 16. O-O-O {[%clk 0:02:29.7]} 16... Rb8 {[%clk 0:02:12.3]} 17.
Rhe1 {[%clk 0:02:28.8]} 17... Be7 {[%clk 0:02:05.5]} 18. Bxc7 {[%clk 0:02:25.1]}
18... Rc8 {[%clk 0:01:12.5]} 19. Bb6 {[%clk 0:02:25.3]} 19... Be6 {[%clk
0:01:11.8]} 20. Ne4 {[%clk 0:02:10.9]} 20... Nd5 {[%clk 0:01:11.5]} 21. Bc5
{[%clk 0:02:04]} 21... Bxh4 {[%clk 0:01:03.5]} 22. Nd6+ {[%clk 0:02:03.6]} 22...
Kd7 {[%clk 0:01:03.6]} 23. Nxc8 {[%clk 0:02:03.4]} 23... Rxc8 {[%clk 0:01:04.5]}
24. c4 {[%clk 0:02:03.6]} 24... Ke8 {[%clk 0:00:55.2]} 25. cxd5 {[%clk
0:02:03.6]} 25... cxd5 {[%clk 0:00:55.1]} 26. b4 {[%clk 0:02:04.5]} 26... Bxf2
{[%clk 0:00:54.7]} 27. Re2 {[%clk 0:02:02.5]} 27... Bxc5 {[%clk 0:00:53.3]} 28.
bxc5 {[%clk 0:02:03.4]} 28... Rxc5+ {[%clk 0:00:54.2]} 29. Kb2 {[%clk 0:02:00]}
29... Rxa5 {[%clk 0:00:55.1]} 30. Bxd5 {[%clk 0:01:59.6]} 30... Ke7 {[%clk
0:00:50.9]} 31. Bxe6 {[%clk 0:01:57.7]} 31... fxe6 {[%clk 0:00:51.8]} 32. Rde1
{[%clk 0:01:58.1]} 32... Rb5+ {[%clk 0:00:45.4]} 33. Kc3 {[%clk 0:01:58.2]}
33... Rc5+ {[%clk 0:00:45.1]} 34. Kd4 {[%clk 0:01:57.7]} 34... Rd5+ {[%clk
0:00:44.8]} 35. Kc4 {[%clk 0:01:58.2]} 35... Rd6 {[%clk 0:00:45.1]} 36. Re5
{[%clk 0:01:58.9]} 36... g6 {[%clk 0:00:45.1]} 37. Rg5 {[%clk 0:01:56.2]} 37...
Kf6 {[%clk 0:00:44.3]} 38. Rc5 {[%clk 0:01:55]} 38... Rd2 {[%clk 0:00:44]} 39.
Rf1+ {[%clk 0:01:53.8]} 39... Kg7 {[%clk 0:00:43.5]} 40. Rg5 {[%clk 0:01:48.5]}
40... Kh6 {[%clk 0:00:43.5]} 41. Rg3 {[%clk 0:01:48.2]} 41... h4 {[%clk
0:00:43.7]} 42. Rh3 {[%clk 0:01:42.9]} 42... Kh5 {[%clk 0:00:43.7]} 43. g3
{[%clk 0:01:42.3]} 43... g5 {[%clk 0:00:41.2]} 44. gxh4 {[%clk 0:01:42.6]} 44...
g4 {[%clk 0:00:41.6]} 45. Re3 {[%clk 0:01:42.6]} 45... Kxh4 {[%clk 0:00:37.9]}
46. Rxe6 {[%clk 0:01:42.5]} 46... g3 {[%clk 0:00:37]} 47. Rh6+ {[%clk 0:01:31]}
47... Kg5 {[%clk 0:00:34.9]} 48. Rxa6 {[%clk 0:01:30.8]} 48... g2 {[%clk
0:00:34.5]} 49. Rg1 {[%clk 0:01:30.1]} 49... Kf4 {[%clk 0:00:34.5]} 50. Ra3
{[%clk 0:01:30.2]} 50... Rf2 {[%clk 0:00:34]} 51. Rd3 {[%clk 0:01:29.5]} 51...
Kg4 {[%clk 0:00:33.7]} 52. Kd4 {[%clk 0:01:27.2]} 52... Kf4 {[%clk 0:00:33.4]}
53. Kc3 {[%clk 0:01:21.8]} 53... Kg4 {[%clk 0:00:32.1]} 54. Rdd1 {[%clk
0:01:11.1]} 54... Kg3 {[%clk 0:00:31.8]} 55. Kd3 {[%clk 0:01:06.6]} 55... Rf3+
{[%clk 0:00:31.5]} 56. Ke2 {[%clk 0:01:04.8]} 56... Rf2+ {[%clk 0:00:31.4]} 57.
Ke3 {[%clk 0:01:05.5]} 57... Rf3+ {[%clk 0:00:31.5]} 58. Ke4 {[%clk 0:01:06.1]}
58... Rf4+ {[%clk 0:00:31.6]} 59. Ke5 {[%clk 0:01:05.8]} 59... Rf2 {[%clk
0:00:31.7]} 60. Rd8 {[%clk 0:00:50.3]} 60... Kh2 {[%clk 0:00:26]} 61. Rdd1
{[%clk 0:00:40.5]} 61... Kg3 {[%clk 0:00:25.4]} 62. Ke4 {[%clk 0:00:39.3]} 62...
Re2+ {[%clk 0:00:25.2]} 63. Kd3 {[%clk 0:00:39.5]} 63... Rf2 {[%clk 0:00:25.4]}
64. Rde1 {[%clk 0:00:39.6]} 64... Ra2 {[%clk 0:00:22.8]} 65. Re2 {[%clk
0:00:37.3]} 65... Ra3+ {[%clk 0:00:12.2]} 66. Kc4 {[%clk 0:00:35.7]} 66... Ra4+
{[%clk 0:00:11.9]} 67. Kb3 {[%clk 0:00:35.7]} 67... Rf4 {[%clk 0:00:12]} 68.
Rgxg2+ {[%clk 0:00:34.9]} 1-0

[Event "Early-Titled-Tuesday-Blitz-February-27-2024"]
[Site "Chess.com"]
[Date "2024.02.27"]
[Round "8"]
[White "ilqar_74"]
[Black "Alexander_Donchenko"]
[Result "0-1"]
[WhiteElo "2828"]
[BlackElo "2910"]
[TimeControl "180+1"]
[EndTime "9:28:48 PST"]
[Termination "Alexander_Donchenko won by checkmate"]

1. e4 {[%clk 0:03:00.9]} 1... c6 {[%clk 0:03:00]} 2. Nc3 {[%clk 0:03:00.9]} 2...
d5 {[%clk 0:03:00.9]} 3. Nf3 {[%clk 0:03:01.5]} 3... dxe4 {[%clk 0:03:01.2]} 4.
Nxe4 {[%clk 0:03:02.4]} 4... Nf6 {[%clk 0:03:01.6]} 5. Qe2 {[%clk 0:03:02.8]}
5... Nxe4 {[%clk 0:03:02.1]} 6. Qxe4 {[%clk 0:03:03.7]} 6... Nd7 {[%clk
0:03:02.5]} 7. Bc4 {[%clk 0:03:03.6]} 7... Nf6 {[%clk 0:03:03.1]} 8. Ne5 {[%clk
0:03:04.2]} 8... e6 {[%clk 0:03:03.6]} 9. Qe2 {[%clk 0:03:04.9]} 9... b5 {[%clk
0:03:03.2]} 10. Bb3 {[%clk 0:03:05.5]} 10... Qc7 {[%clk 0:02:58.3]} 11. d4
{[%clk 0:03:05.4]} 11... Bd6 {[%clk 0:02:58.1]} 12. a4 {[%clk 0:03:05.2]} 12...
a6 {[%clk 0:02:46.7]} 13. O-O {[%clk 0:03:04.2]} 13... O-O {[%clk 0:02:45.4]}
14. c4 {[%clk 0:03:04.4]} 14... bxc4 {[%clk 0:02:43.2]} 15. Bxc4 {[%clk
0:03:01.3]} 15... Bb7 {[%clk 0:02:42]} 16. b3 {[%clk 0:02:56.4]} 16... c5 {[%clk
0:02:32.9]} 17. Bb2 {[%clk 0:02:53.3]} 17... cxd4 {[%clk 0:02:26]} 18. Bxd4
{[%clk 0:02:52.9]} 18... a5 {[%clk 0:02:25.5]} 19. Rad1 {[%clk 0:02:49.4]} 19...
Rad8 {[%clk 0:02:20.4]} 20. h3 {[%clk 0:02:41.5]} 20... Ba8 {[%clk 0:02:13]} 21.
Ba1 {[%clk 0:02:04.8]} 21... Nd5 {[%clk 0:02:03.3]} 22. Nd3 {[%clk 0:01:53.7]}
22... Qb7 {[%clk 0:01:55.6]} 23. Qg4 {[%clk 0:01:38.9]} 23... f5 {[%clk
0:01:55.3]} 24. Qg5 {[%clk 0:01:09.6]} 24... Rde8 {[%clk 0:01:05.1]} 25. f3
{[%clk 0:00:50.6]} 25... Qa7+ {[%clk 0:00:58.7]} 26. Kh1 {[%clk 0:00:47.4]}
26... Ne3 {[%clk 0:00:48.6]} 27. Bxg7 {[%clk 0:00:24.6]} 27... Qxg7 {[%clk
0:00:49.5]} 28. Qxe3 {[%clk 0:00:24.4]} 28... Qg3 {[%clk 0:00:50.1]} 29. Qg1
{[%clk 0:00:23.7]} 29... Kh8 {[%clk 0:00:48.1]} 30. Ne1 {[%clk 0:00:21.1]} 30...
Rg8 {[%clk 0:00:39]} 31. Rd3 {[%clk 0:00:11.3]} 31... Bf4 {[%clk 0:00:34.8]} 32.
Rd7 {[%clk 0:00:11.1]} 32... Rg6 {[%clk 0:00:31.1]} 33. Nd3 {[%clk 0:00:11.6]}
33... Bb8 {[%clk 0:00:13]} 34. Qd4+ {[%clk 0:00:11.3]} 34... e5 {[%clk 0:00:10]}
35. Qf2 {[%clk 0:00:10.4]} 35... Qg5 {[%clk 0:00:07.3]} 36. Rd1 {[%clk
0:00:05.4]} 36... e4 {[%clk 0:00:07.2]} 37. f4 {[%clk 0:00:06]} 37... Qg3 {[%clk
0:00:02.6]} 38. Qd4+ {[%clk 0:00:06.3]} 38... Rg7 {[%clk 0:00:02.4]} 39. Qxg7+
{[%clk 0:00:05.8]} 39... Qxg7 {[%clk 0:00:02.4]} 40. Rxg7 {[%clk 0:00:06.7]}
40... Kxg7 {[%clk 0:00:03.2]} 41. Ne5 {[%clk 0:00:07.3]} 41... Bxe5 {[%clk
0:00:03.1]} 42. Rd7+ {[%clk 0:00:07.5]} 42... Kf6 {[%clk 0:00:02.8]} 43. fxe5+
{[%clk 0:00:08]} 43... Kxe5 {[%clk 0:00:03]} 44. Kg1 {[%clk 0:00:07.8]} 44... h6
{[%clk 0:00:02.5]} 45. g3 {[%clk 0:00:07.2]} 45... f4 {[%clk 0:00:02.5]} 46.
gxf4+ {[%clk 0:00:05.8]} 46... Kxf4 {[%clk 0:00:03.4]} 47. Kf2 {[%clk
0:00:05.6]} 47... e3+ {[%clk 0:00:04]} 48. Ke2 {[%clk 0:00:06.3]} 48... Bf3+
{[%clk 0:00:04.3]} 49. Ke1 {[%clk 0:00:06.9]} 49... Rc8 {[%clk 0:00:02.4]} 50.
Rf7+ {[%clk 0:00:07.2]} 50... Kg3 {[%clk 0:00:02.5]} 51. Rg7+ {[%clk 0:00:07.1]}
51... Kf4 {[%clk 0:00:02.9]} 52. Rf7+ {[%clk 0:00:07.5]} 52... Kg3 {[%clk
0:00:03.6]} 53. Re7 {[%clk 0:00:07.1]} 53... e2 {[%clk 0:00:03.2]} 54. Re3
{[%clk 0:00:07.4]} 54... Kf4 {[%clk 0:00:03.2]} 55. Re7 {[%clk 0:00:07.9]} 55...
Rg8 {[%clk 0:00:02.8]} 56. Bxe2 {[%clk 0:00:08]} 56... Rg1+ {[%clk 0:00:02.7]}
57. Kd2 {[%clk 0:00:07.4]} 57... Bxe2 {[%clk 0:00:03.2]} 58. Rxe2 {[%clk
0:00:07.1]} 58... Rg3 {[%clk 0:00:03.7]} 59. Rf2+ {[%clk 0:00:05.8]} 59... Ke4
{[%clk 0:00:04.3]} 60. Kc2 {[%clk 0:00:05]} 60... Rxh3 {[%clk 0:00:04.5]} 61.
Rf8 {[%clk 0:00:05.7]} 61... Kd4 {[%clk 0:00:03.8]} 62. Ra8 {[%clk 0:00:04.3]}
62... Rh2+ {[%clk 0:00:04]} 63. Kc1 {[%clk 0:00:05]} 63... Kc3 {[%clk
0:00:04.6]} 64. Rxa5 {[%clk 0:00:05.7]} 64... Rh1# {[%clk 0:00:04.5]} 0-1

[Event "Early-Titled-Tuesday-Blitz-February-27-2024"]
[Site "Chess.com"]
[Date "2024.02.27"]
[Round "8"]
[White "FARIZA2018"]
[Black "SuperBlitz2013"]
[Result "1-0"]
[WhiteElo "2594"]
[BlackElo "2263"]
[TimeControl "180+1"]
[EndTime "9:28:52 PST"]
[Termination "FARIZA2018 won by resignation"]

1. e4 {[%clk 0:03:00.9]} 1... e5 {[%clk 0:02:59.7]} 2. Nf3 {[%clk 0:03:01]} 2...
Nc6 {[%clk 0:02:59.8]} 3. Bb5 {[%clk 0:03:01.2]} 3... a6 {[%clk 0:03:00.1]} 4.
Ba4 {[%clk 0:03:01.6]} 4... Nf6 {[%clk 0:03:00]} 5. O-O {[%clk 0:03:01.6]} 5...
Be7 {[%clk 0:03:00.1]} 6. Re1 {[%clk 0:03:01.6]} 6... b5 {[%clk 0:02:59.7]} 7.
Bb3 {[%clk 0:03:01.8]} 7... d6 {[%clk 0:03:00.6]} 8. c3 {[%clk 0:03:01.8]} 8...
O-O {[%clk 0:03:00.6]} 9. h3 {[%clk 0:03:02.1]} 9... Nb8 {[%clk 0:03:01.3]} 10.
d4 {[%clk 0:03:02]} 10... Nbd7 {[%clk 0:03:02.2]} 11. Nbd2 {[%clk 0:03:02.1]}
11... Bb7 {[%clk 0:03:02.6]} 12. Bc2 {[%clk 0:03:02]} 12... Re8 {[%clk
0:03:03.2]} 13. Nf1 {[%clk 0:03:02.2]} 13... Bf8 {[%clk 0:03:03.9]} 14. Ng3
{[%clk 0:03:01.8]} 14... g6 {[%clk 0:03:04.3]} 15. a4 {[%clk 0:02:56.1]} 15...
c5 {[%clk 0:03:02.7]} 16. d5 {[%clk 0:02:56.1]} 16... c4 {[%clk 0:03:02.9]} 17.
Bg5 {[%clk 0:02:56.1]} 17... Be7 {[%clk 0:03:02.8]} 18. Qd2 {[%clk 0:02:44.7]}
18... Nc5 {[%clk 0:03:02.6]} 19. axb5 {[%clk 0:02:38.1]} 19... axb5 {[%clk
0:03:03.5]} 20. Be3 {[%clk 0:02:37]} 20... Qc7 {[%clk 0:02:36.3]} 21. h4 {[%clk
0:01:44.8]} 21... h5 {[%clk 0:02:24.7]} 22. Bg5 {[%clk 0:01:44.4]} 22... Ng4
{[%clk 0:02:21.9]} 23. Bxe7 {[%clk 0:01:42.6]} 23... Qxe7 {[%clk 0:02:22.8]} 24.
Ng5 {[%clk 0:01:39.3]} 24... Reb8 {[%clk 0:02:21.9]} 25. f3 {[%clk 0:01:18.5]}
25... Nf6 {[%clk 0:02:18.4]} 26. f4 {[%clk 0:01:10.3]} 26... exf4 {[%clk
0:01:22]} 27. Qxf4 {[%clk 0:01:10.1]} 27... Qe5 {[%clk 0:01:20.6]} 28. Qf3
{[%clk 0:01:08.3]} 28... Rxa1 {[%clk 0:01:17.2]} 29. Rxa1 {[%clk 0:01:08.3]}
29... Ra8 {[%clk 0:01:17]} 30. Rf1 {[%clk 0:01:08.5]} 30... Kg7 {[%clk
0:01:15.4]} 31. Ne2 {[%clk 0:00:59.8]} 31... Bc8 {[%clk 0:01:12.1]} 32. Nd4
{[%clk 0:00:56.6]} 32... Bg4 {[%clk 0:01:08]} 33. Qf2 {[%clk 0:00:55.6]} 33...
Bd7 {[%clk 0:00:42.5]} 34. g3 {[%clk 0:00:39.1]} 34... Rf8 {[%clk 0:00:37.5]}
35. Qf3 {[%clk 0:00:26.2]} 35... Qe7 {[%clk 0:00:27.8]} 36. Kg2 {[%clk
0:00:23.3]} 36... Ng4 {[%clk 0:00:25.8]} 37. Qf4 {[%clk 0:00:13.7]} 37... Ne5
{[%clk 0:00:24.8]} 38. Bd1 {[%clk 0:00:08.1]} 38... Ncd3 {[%clk 0:00:24.2]} 39.
Qe3 {[%clk 0:00:06.9]} 39... Nxb2 {[%clk 0:00:15.5]} 40. Be2 {[%clk 0:00:07.1]}
40... Nbd3 {[%clk 0:00:15.6]} 41. Ndf3 {[%clk 0:00:06.6]} 41... Nxf3 {[%clk
0:00:13.2]} 42. Qxf3 {[%clk 0:00:06.2]} 42... Ne5 {[%clk 0:00:13.2]} 43. Qf4
{[%clk 0:00:06.3]} 43... f6 {[%clk 0:00:11.6]} 44. Nf3 {[%clk 0:00:06.4]} 44...
Nxf3 {[%clk 0:00:09.7]} 45. Bxf3 {[%clk 0:00:06.8]} 45... Qe5 {[%clk 0:00:09.8]}
46. Qe3 {[%clk 0:00:07]} 46... Ra8 {[%clk 0:00:08.6]} 47. Rb1 {[%clk 0:00:06.7]}
47... Ra2+ {[%clk 0:00:08.4]} 48. Be2 {[%clk 0:00:06.3]} 48... Bg4 {[%clk
0:00:07.5]} 49. Re1 {[%clk 0:00:05.1]} 49... b4 {[%clk 0:00:07.2]} 50. cxb4
{[%clk 0:00:04.9]} 50... c3 {[%clk 0:00:07.2]} 51. Kf1 {[%clk 0:00:05.1]} 51...
Qxg3 {[%clk 0:00:06.3]} 52. Qxg3 {[%clk 0:00:05.1]} 52... Bxe2+ {[%clk
0:00:05.5]} 53. Rxe2 {[%clk 0:00:05.4]} 53... Ra1+ {[%clk 0:00:06.2]} 54. Kf2
{[%clk 0:00:05.6]} 54... Ra3 {[%clk 0:00:03.4]} 55. Rc2 {[%clk 0:00:05.7]} 55...
Rb3 {[%clk 0:00:03.8]} 56. Rxc3 {[%clk 0:00:05.8]} 56... Rxb4 {[%clk 0:00:04.7]}
57. Qxd6 {[%clk 0:00:05.9]} 57... Rxe4 {[%clk 0:00:05.4]} 58. Rc7+ {[%clk
0:00:05.6]} 1-0

[Event "Early-Titled-Tuesday-Blitz-February-27-2024"]
[Site "Chess.com"]
[Date "2024.02.27"]
[Round "8"]
[White "TregubovP"]
[Black "ActorXu"]
[Result "0-1"]
[WhiteElo "2677"]
[BlackElo "2839"]
[TimeControl "180+1"]
[EndTime "9:28:58 PST"]
[Termination "ActorXu won on time"]

1. e4 {[%clk 0:02:01.2]} 1... c5 {[%clk 0:02:58.8]} 2. Nf3 {[%clk 0:02:01.2]}
2... Nc6 {[%clk 0:02:59.1]} 3. Bb5 {[%clk 0:01:59.5]} 3... Nf6 {[%clk
0:02:55.9]} 4. O-O {[%clk 0:01:56]} 4... Nxe4 {[%clk 0:02:51.8]} 5. Re1 {[%clk
0:01:56.2]} 5... Nf6 {[%clk 0:02:48.1]} 6. d4 {[%clk 0:01:55.7]} 6... cxd4
{[%clk 0:02:24.9]} 7. Nxd4 {[%clk 0:01:55.7]} 7... g6 {[%clk 0:02:20.9]} 8. Nc3
{[%clk 0:01:42.7]} 8... Bg7 {[%clk 0:02:19.2]} 9. Bg5 {[%clk 0:01:39.5]} 9...
O-O {[%clk 0:02:18.2]} 10. Nf3 {[%clk 0:01:35.8]} 10... a6 {[%clk 0:02:11.2]}
11. Bf1 {[%clk 0:01:27.3]} 11... d6 {[%clk 0:02:10.6]} 12. Qd2 {[%clk
0:01:23.8]} 12... Bg4 {[%clk 0:02:09.7]} 13. Be2 {[%clk 0:01:18.2]} 13... Qa5
{[%clk 0:02:01.2]} 14. h3 {[%clk 0:01:17.4]} 14... Be6 {[%clk 0:01:55.2]} 15. a3
{[%clk 0:01:13.2]} 15... Rac8 {[%clk 0:01:52.6]} 16. b4 {[%clk 0:01:12]} 16...
Qc7 {[%clk 0:01:50.1]} 17. Rab1 {[%clk 0:00:58.5]} 17... Ne5 {[%clk 0:01:41.2]}
18. Nxe5 {[%clk 0:00:43.8]} 18... Qxc3 {[%clk 0:01:39.5]} 19. Nf3 {[%clk
0:00:33.1]} 19... Qxd2 {[%clk 0:01:26.7]} 20. Bxd2 {[%clk 0:00:23.3]} 20... Rxc2
{[%clk 0:01:26.4]} 21. Be3 {[%clk 0:00:19.7]} 21... Rcc8 {[%clk 0:01:21]} 22.
Nd4 {[%clk 0:00:19]} 22... Bd7 {[%clk 0:01:20.9]} 23. Bf3 {[%clk 0:00:15.3]}
23... d5 {[%clk 0:01:18.5]} 24. Nb3 {[%clk 0:00:14.4]} 24... e6 {[%clk
0:01:13.2]} 25. Nc5 {[%clk 0:00:13.9]} 25... Bc6 {[%clk 0:01:13]} 26. Rbc1
{[%clk 0:00:13.8]} 26... Nd7 {[%clk 0:01:10.9]} 27. Nd3 {[%clk 0:00:11.5]} 27...
Bb5 {[%clk 0:01:04.9]} 28. Nc5 {[%clk 0:00:09.1]} 28... Nxc5 {[%clk 0:01:04.6]}
29. Bxc5 {[%clk 0:00:08]} 29... Rfe8 {[%clk 0:01:03.1]} 30. g4 {[%clk
0:00:07.4]} 30... Bf8 {[%clk 0:01:01.8]} 31. Bd4 {[%clk 0:00:06.8]} 31... Bd7
{[%clk 0:01:00.2]} 32. Kg2 {[%clk 0:00:06.2]} 32... Rxc1 {[%clk 0:01:00.1]} 33.
Rxc1 {[%clk 0:00:05.8]} 33... Rc8 {[%clk 0:01:00.7]} 34. Rxc8 {[%clk 0:00:06.7]}
34... Bxc8 {[%clk 0:01:01]} 35. Be2 {[%clk 0:00:06.8]} 35... Bd7 {[%clk
0:01:01]} 36. f4 {[%clk 0:00:07.1]} 36... Bb5 {[%clk 0:00:59.9]} 37. Bd1 {[%clk
0:00:06.2]} 37... Bd6 {[%clk 0:00:58.7]} 38. Kf3 {[%clk 0:00:06.2]} 38... Kf8
{[%clk 0:00:58.3]} 39. Ke3 {[%clk 0:00:06.7]} 39... Ke7 {[%clk 0:00:58.5]} 40.
h4 {[%clk 0:00:07]} 40... f6 {[%clk 0:00:58.5]} 41. g5 {[%clk 0:00:07.1]} 41...
e5 {[%clk 0:00:57.6]} 42. gxf6+ {[%clk 0:00:07.1]} 42... Kxf6 {[%clk 0:00:58.3]}
43. fxe5+ {[%clk 0:00:08]} 43... Bxe5 {[%clk 0:00:58.8]} 44. Bb6 {[%clk
0:00:07.9]} 44... Kf5 {[%clk 0:00:47.7]} 45. a4 {[%clk 0:00:07.9]} 45... Bc4
{[%clk 0:00:47.9]} 46. h5 {[%clk 0:00:07]} 46... gxh5 {[%clk 0:00:44.1]} 47.
Bxh5 {[%clk 0:00:06.1]} 47... Bd6 {[%clk 0:00:38.4]} 48. Bd1 {[%clk 0:00:02.6]}
48... Bxb4 {[%clk 0:00:30.8]} 49. Bc2+ {[%clk 0:00:03.5]} 49... Ke6 {[%clk
0:00:29]} 50. Bxh7 {[%clk 0:00:04.4]} 50... Bb3 {[%clk 0:00:29.1]} 51. a5 {[%clk
0:00:04.8]} 51... Kd6 {[%clk 0:00:28.7]} 52. Kd4 {[%clk 0:00:05.3]} 52... Ba3
{[%clk 0:00:24]} 53. Bg6 {[%clk 0:00:05.5]} 53... Bb2+ {[%clk 0:00:24.1]} 54.
Kd3 {[%clk 0:00:06.4]} 54... Bc4+ {[%clk 0:00:23]} 55. Kc2 {[%clk 0:00:06.2]}
55... Bf6 {[%clk 0:00:21.7]} 56. Bf5 {[%clk 0:00:07.1]} 56... Kc6 {[%clk
0:00:21.7]} 57. Bg6 {[%clk 0:00:06.6]} 57... d4 {[%clk 0:00:19.5]} 58. Be8+
{[%clk 0:00:06.7]} 58... Kd6 {[%clk 0:00:19.5]} 59. Bh5 {[%clk 0:00:05.6]} 59...
Bb5 {[%clk 0:00:16.1]} 60. Bg6 {[%clk 0:00:04.4]} 60... Kd5 {[%clk 0:00:14.9]}
61. Bf7+ {[%clk 0:00:03.3]} 61... Ke4 {[%clk 0:00:15]} 62. Be6 {[%clk
0:00:02.8]} 62... d3+ {[%clk 0:00:13.6]} 63. Kd2 {[%clk 0:00:02.8]} 63... Bg5+
{[%clk 0:00:13.6]} 64. Kc3 {[%clk 0:00:02.3]} 64... d2 {[%clk 0:00:12.5]} 65.
Bb3 {[%clk 0:00:02.9]} 65... Be2 {[%clk 0:00:12.5]} 66. Bc2+ {[%clk 0:00:02.7]}
66... Kd5 {[%clk 0:00:12.2]} 67. Kb2 {[%clk 0:00:01.5]} 67... d1=Q {[%clk
0:00:12]} 0-1

[Event "Early-Titled-Tuesday-Blitz-February-27-2024"]
[Site "Chess.com"]
[Date "2024.02.27"]
[Round "8"]
[White "kids2010"]
[Black "wqws"]
[Result "0-1"]
[WhiteElo "2881"]
[BlackElo "2715"]
[TimeControl "180+1"]
[EndTime "9:29:11 PST"]
[Termination "wqws won by checkmate"]

1. e4 {[%clk 0:03:00.9]} 1... e5 {[%clk 0:02:59.8]} 2. Nf3 {[%clk 0:02:59.6]}
2... Nc6 {[%clk 0:03:00.1]} 3. Bb5 {[%clk 0:02:59.8]} 3... a6 {[%clk 0:02:59.9]}
4. Ba4 {[%clk 0:02:59.9]} 4... Nf6 {[%clk 0:03:00.3]} 5. O-O {[%clk 0:02:58.2]}
5... b5 {[%clk 0:02:58.3]} 6. Bb3 {[%clk 0:02:58.1]} 6... Be7 {[%clk 0:02:58.7]}
7. Re1 {[%clk 0:02:58]} 7... O-O {[%clk 0:02:58.9]} 8. a4 {[%clk 0:02:58.6]}
8... b4 {[%clk 0:02:54.2]} 9. a5 {[%clk 0:02:58.7]} 9... d6 {[%clk 0:02:52.5]}
10. h3 {[%clk 0:02:58.1]} 10... Be6 {[%clk 0:02:48.2]} 11. Bxe6 {[%clk
0:02:47.2]} 11... fxe6 {[%clk 0:02:49.1]} 12. d3 {[%clk 0:02:48]} 12... Qe8
{[%clk 0:02:46]} 13. Nbd2 {[%clk 0:02:47.8]} 13... Nh5 {[%clk 0:02:45.8]} 14.
Nb3 {[%clk 0:02:45.2]} 14... Qg6 {[%clk 0:02:44.1]} 15. d4 {[%clk 0:02:37.5]}
15... exd4 {[%clk 0:02:31.1]} 16. Nbxd4 {[%clk 0:02:36]} 16... Nxd4 {[%clk
0:02:22]} 17. Nxd4 {[%clk 0:02:36.9]} 17... Bh4 {[%clk 0:01:52]} 18. Be3 {[%clk
0:02:25.3]} 18... Nf4 {[%clk 0:01:42]} 19. Qg4 {[%clk 0:02:19]} 19... Qxg4
{[%clk 0:01:24.6]} 20. hxg4 {[%clk 0:02:19.9]} 20... Bf6 {[%clk 0:01:21.4]} 21.
Ra4 {[%clk 0:01:42.6]} 21... Bxd4 {[%clk 0:01:16.2]} 22. Bxd4 {[%clk 0:01:43.5]}
22... e5 {[%clk 0:01:08.1]} 23. Be3 {[%clk 0:01:43.6]} 23... Rab8 {[%clk
0:01:08.3]} 24. Bxf4 {[%clk 0:01:31.8]} 24... Rxf4 {[%clk 0:01:07.1]} 25. f3
{[%clk 0:01:32.3]} 25... Rb5 {[%clk 0:01:05.5]} 26. Re3 {[%clk 0:01:29.8]} 26...
Rf8 {[%clk 0:01:05.7]} 27. Rb3 {[%clk 0:01:00.5]} 27... Rfb8 {[%clk 0:01:05.2]}
28. Kf2 {[%clk 0:00:59.5]} 28... Kf7 {[%clk 0:01:04]} 29. Ke2 {[%clk 0:00:59.4]}
29... Ke7 {[%clk 0:01:04.3]} 30. Kd2 {[%clk 0:00:59.9]} 30... c5 {[%clk
0:00:59.8]} 31. Re3 {[%clk 0:00:58.8]} 31... c4 {[%clk 0:00:56]} 32. b3 {[%clk
0:00:54.5]} 32... c3+ {[%clk 0:00:53.8]} 33. Ke2 {[%clk 0:00:54.6]} 33... Rd8
{[%clk 0:00:45.2]} 34. Rd3 {[%clk 0:00:55.1]} 34... Kd7 {[%clk 0:00:43]} 35. Ra1
{[%clk 0:00:54.5]} 35... Kc6 {[%clk 0:00:43.1]} 36. Ke3 {[%clk 0:00:54.7]} 36...
d5 {[%clk 0:00:41.8]} 37. Ra4 {[%clk 0:00:46.3]} 37... Rd6 {[%clk 0:00:37.7]}
38. exd5+ {[%clk 0:00:33]} 38... Rdxd5 {[%clk 0:00:37.6]} 39. Rxd5 {[%clk
0:00:33.7]} 39... Kxd5 {[%clk 0:00:38.5]} 40. Kd3 {[%clk 0:00:34.4]} 40... Kc5
{[%clk 0:00:35.4]} 41. Ke4 {[%clk 0:00:23.1]} 41... Kd6 {[%clk 0:00:35.6]} 42.
Ra1 {[%clk 0:00:22.1]} 42... Rd5 {[%clk 0:00:35.6]} 43. Ra4 {[%clk 0:00:20.1]}
43... Rd4+ {[%clk 0:00:33.6]} 44. Ke3 {[%clk 0:00:20.6]} 44... Kc5 {[%clk
0:00:33.3]} 45. g3 {[%clk 0:00:20.9]} 45... Rd2 {[%clk 0:00:32.7]} 46. Ra2
{[%clk 0:00:21.6]} 46... Rg2 {[%clk 0:00:32.6]} 47. Ke4 {[%clk 0:00:15.7]} 47...
Rxg3 {[%clk 0:00:32.9]} 48. Ra1 {[%clk 0:00:15.7]} 48... Rg2 {[%clk 0:00:33.3]}
49. Ra2 {[%clk 0:00:13.7]} 49... Rf2 {[%clk 0:00:31.6]} 50. Ke3 {[%clk 0:00:13]}
50... Rd2 {[%clk 0:00:31.2]} 51. Ke4 {[%clk 0:00:13.9]} 51... Kd6 {[%clk
0:00:28.8]} 52. Ke3 {[%clk 0:00:14]} 52... g6 {[%clk 0:00:28.1]} 53. Ra4 {[%clk
0:00:12.9]} 53... Kc5 {[%clk 0:00:27.7]} 54. Ra2 {[%clk 0:00:13.4]} 54... h5
{[%clk 0:00:27.9]} 55. gxh5 {[%clk 0:00:11.1]} 55... gxh5 {[%clk 0:00:28.8]} 56.
Ke4 {[%clk 0:00:12]} 56... h4 {[%clk 0:00:29.2]} 57. Kxe5 {[%clk 0:00:11.7]}
57... h3 {[%clk 0:00:29.6]} 58. Ra1 {[%clk 0:00:10.5]} 58... h2 {[%clk
0:00:29.1]} 59. Rh1 {[%clk 0:00:09.3]} 59... Rxc2 {[%clk 0:00:28.9]} 60. Ke4
{[%clk 0:00:10.2]} 60... Rg2 {[%clk 0:00:26]} 61. f4 {[%clk 0:00:05]} 61... c2
{[%clk 0:00:26.2]} 62. Rc1 {[%clk 0:00:05.6]} 62... Kb5 {[%clk 0:00:24.4]} 63.
Kd5 {[%clk 0:00:05.3]} 63... Rg1 {[%clk 0:00:23.6]} 64. Rxc2 {[%clk 0:00:06]}
64... h1=Q+ {[%clk 0:00:23.5]} 65. Kd6 {[%clk 0:00:06.5]} 65... Rg6+ {[%clk
0:00:23.1]} 66. Ke5 {[%clk 0:00:05.8]} 66... Qh5+ {[%clk 0:00:22.4]} 67. f5
{[%clk 0:00:06.3]} 67... Rg8 {[%clk 0:00:19.7]} 68. Kd4 {[%clk 0:00:05.9]} 68...
Rd8+ {[%clk 0:00:19.5]} 69. Ke5 {[%clk 0:00:06.3]} 69... Re8+ {[%clk 0:00:19.6]}
70. Kd6 {[%clk 0:00:06.9]} 70... Qxf5 {[%clk 0:00:18]} 71. Kc7 {[%clk
0:00:06.5]} 71... Qxc2+ {[%clk 0:00:17.8]} 72. Kb7 {[%clk 0:00:05.4]} 72... Qc6+
{[%clk 0:00:18.7]} 73. Ka7 {[%clk 0:00:06.3]} 73... Ra8# {[%clk 0:00:18.4]} 0-1